[Event "Titled Tuesday Blitz December 20 Early 2022"]
[White "Tsigelnitskiy, Ilusha"]
[Black "Badlyplayed"]
[WhiteFideId "4132971"]
[WhiteElo "2342"]
[BlackElo "2262"]
[Result "1-0"]
[Round "10"]
[TimeControl "180+2"]
[Date "2022.12.20"]
[WhiteClock "0:00:51"]
[BlackClock "0:00:12"]

1. e4 {[%clk 0:03:00]}  c5 {[%clk 0:02:59]} 2. b3 {[%clk 0:02:59]}  Nc6 {[%clk 0:02:48]} 3. Bb2 {[%clk 0:03:00]}  d6 {[%clk 0:02:47]} 4. Nf3 {[%clk 0:02:59]}  Nf6 {[%clk 0:02:47]} 5. Nc3 {[%clk 0:02:59]}  g6 {[%clk 0:02:46]} 6. d4 {[%clk 0:02:59]}  cxd4 {[%clk 0:02:44]} 7. Nxd4 {[%clk 0:03:00]}  Bg7 {[%clk 0:02:44]} 8. f3 {[%clk 0:02:49]}  O-O {[%clk 0:02:38]} 9. Qd2 {[%clk 0:02:45]}  a6 {[%clk 0:02:30]} 10. O-O-O {[%clk 0:02:45]}  Nxd4 {[%clk 0:02:21]} 11. Qxd4 {[%clk 0:02:46]}  Be6 {[%clk 0:02:07]} 12. h4 {[%clk 0:02:44]}  Qa5 {[%clk 0:02:00]} 13. Kb1 {[%clk 0:02:42]}  Rac8 {[%clk 0:01:58]} 14. Nd5 {[%clk 0:02:24]}  Bxd5 {[%clk 0:01:46]} 15. exd5 {[%clk 0:02:24]}  Nh5 {[%clk 0:01:44]} 16. Qd2 {[%clk 0:02:22]}  Qxd2 {[%clk 0:01:23]} 17. Rxd2 {[%clk 0:02:23]}  Bxb2 {[%clk 0:01:23]} 18. Kxb2 {[%clk 0:02:23]}  Ng3 {[%clk 0:01:22]} 19. Rg1 {[%clk 0:02:20]}  b5 {[%clk 0:01:19]} 20. Bd3 {[%clk 0:02:18]}  Rc5 {[%clk 0:01:18]} 21. Re1 {[%clk 0:02:14]}  Re8 {[%clk 0:01:11]} 22. c4 {[%clk 0:02:08]}  bxc4 {[%clk 0:01:07]} 23. Bxc4 {[%clk 0:02:05]}  Kf8 {[%clk 0:01:06]} 24. Bxa6 {[%clk 0:02:00]}  Rb8 {[%clk 0:00:59]} 25. a4 {[%clk 0:01:53]}  h5 {[%clk 0:00:55]} 26. Bb5 {[%clk 0:01:51]}  Nf5 {[%clk 0:00:53]} 27. Re4 {[%clk 0:01:50]}  Rbc8 {[%clk 0:00:40]} 28. Bd7 {[%clk 0:01:43]}  R8c7 {[%clk 0:00:30]} 29. Bxf5 {[%clk 0:01:42]}  gxf5 {[%clk 0:00:30]} 30. Red4 {[%clk 0:01:23]}  Kg7 {[%clk 0:00:29]} 31. Ka3 {[%clk 0:01:07]}  Kf6 {[%clk 0:00:28]} 32. f4 {[%clk 0:01:05]}  Rc3 {[%clk 0:00:25]} 33. R4d3 {[%clk 0:01:03]}  Rc1 {[%clk 0:00:25]} 34. a5 {[%clk 0:00:58]}  Ra1+ {[%clk 0:00:21]} 35. Ra2 {[%clk 0:00:58]}  Rxa2+ {[%clk 0:00:18]} 36. Kxa2 {[%clk 0:00:59]}  Rc2+ {[%clk 0:00:19]} 37. Ka3 {[%clk 0:00:59]}  Rxg2 {[%clk 0:00:19]} 38. Rd1 {[%clk 0:00:54]}  e5 {[%clk 0:00:15]} 39. dxe6 {[%clk 0:00:52]}  Kxe6 {[%clk 0:00:14]} 40. a6 {[%clk 0:00:51]}  Rg8 {[%clk 0:00:12]} 41. b4 {[%clk 0:00:51]}  d5 {[%clk 0:00:12]} 42. b5 {[%clk 0:00:51]} 1-0


[Site "https://www.chess.com"]

[Event "Titled Tuesday Blitz December 20 Early 2022"]
[White "Ural_bogatyr"]
[Black "GiorgianBarbosa"]
[WhiteElo "2615"]
[BlackElo "2484"]
[Result "1-0"]
[Round "10"]
[TimeControl "180+2"]
[Date "2022.12.20"]
[WhiteClock "0:00:21"]
[BlackClock "0:00:06"]

1. d4 {[%clk 0:03:00]}  d5 {[%clk 0:02:53]} 2. Nc3 {[%clk 0:03:01]}  c6 {[%clk 0:02:54]} 3. Bf4 {[%clk 0:03:01]}  Nf6 {[%clk 0:02:54]} 4. e3 {[%clk 0:03:01]}  Bg4 {[%clk 0:02:54]} 5. f3 {[%clk 0:03:00]}  Bf5 {[%clk 0:02:50]} 6. g4 {[%clk 0:03:01]}  Bg6 {[%clk 0:02:43]} 7. h4 {[%clk 0:03:01]}  h5 {[%clk 0:02:41]} 8. g5 {[%clk 0:03:00]}  Ng8 {[%clk 0:02:36]} 9. Bd3 {[%clk 0:02:52]}  Bxd3 {[%clk 0:02:36]} 10. Qxd3 {[%clk 0:02:53]}  g6 {[%clk 0:02:37]} 11. O-O-O {[%clk 0:02:51]}  Bg7 {[%clk 0:02:36]} 12. e4 {[%clk 0:02:49]}  dxe4 {[%clk 0:02:32]} 13. fxe4 {[%clk 0:02:48]}  Nd7 {[%clk 0:02:32]} 14. Nf3 {[%clk 0:02:46]}  e6 {[%clk 0:02:28]} 15. e5 {[%clk 0:02:43]}  Ne7 {[%clk 0:02:27]} 16. Ne4 {[%clk 0:02:43]}  Nf5 {[%clk 0:02:27]} 17. Nfd2 {[%clk 0:02:42]}  O-O {[%clk 0:02:26]} 18. Nc4 {[%clk 0:02:41]}  Nb6 {[%clk 0:02:22]} 19. Ncd6 {[%clk 0:02:41]}  Nd5 {[%clk 0:02:20]} 20. Bd2 {[%clk 0:02:35]}  b5 {[%clk 0:02:08]} 21. Rdf1 {[%clk 0:02:24]}  a5 {[%clk 0:02:05]} 22. Rhg1 {[%clk 0:02:07]}  Nb4 {[%clk 0:01:52]} 23. Qh3 {[%clk 0:01:47]}  Nxd4 {[%clk 0:01:38]} 24. Nf6+ {[%clk 0:01:44]}  Bxf6 {[%clk 0:01:37]} 25. gxf6 {[%clk 0:01:44]}  Nbxc2 {[%clk 0:01:05]} 26. Qd3 {[%clk 0:01:26]}  Kh7 {[%clk 0:00:57]} 27. Rg5 {[%clk 0:01:09]}  Nf5 {[%clk 0:00:15]} 28. Rfxf5 {[%clk 0:01:03]}  exf5 {[%clk 0:00:15]} 29. Kxc2 {[%clk 0:00:48]}  Rh8 {[%clk 0:00:11]} 30. Rxf5 {[%clk 0:00:43]}  Kg8 {[%clk 0:00:09]} 31. Rg5 {[%clk 0:00:43]}  Qd7 {[%clk 0:00:09]} 32. Rxg6+ {[%clk 0:00:37]}  fxg6 {[%clk 0:00:09]} 33. Qxg6+ {[%clk 0:00:37]}  Kf8 {[%clk 0:00:09]} 34. Bh6+ {[%clk 0:00:37]}  Rxh6 {[%clk 0:00:10]} 35. Qxh6+ {[%clk 0:00:38]}  Kg8 {[%clk 0:00:10]} 36. Qg6+ {[%clk 0:00:34]}  Kf8 {[%clk 0:00:09]} 37. e6 {[%clk 0:00:26]}  Qc7 {[%clk 0:00:07]} 38. Qh6+ {[%clk 0:00:20]}  Kg8 {[%clk 0:00:06]} 39. f7+ {[%clk 0:00:21]} 1-0


[Site "https://www.chess.com"]

[Event "Titled Tuesday Blitz December 20 Early 2022"]
[White "Viktorin, Tomas"]
[Black "Witek, Tomasz"]
[WhiteFideId "328316"]
[BlackFideId "1130056"]
[WhiteElo "1971"]
[BlackElo "2000"]
[Result "0-1"]
[Round "10"]
[TimeControl "180+2"]
[Date "2022.12.20"]
[WhiteClock "0:00:03"]
[BlackClock "0:00:05"]

1. d4 {[%clk 0:02:57]}  d5 {[%clk 0:02:58]} 2. c4 {[%clk 0:02:56]}  e6 {[%clk 0:02:58]} 3. Nf3 {[%clk 0:02:54]}  c6 {[%clk 0:02:55]} 4. e3 {[%clk 0:02:50]}  Bd6 {[%clk 0:02:55]} 5. Nbd2 {[%clk 0:02:50]}  f5 {[%clk 0:02:53]} 6. Bd3 {[%clk 0:02:41]}  Nf6 {[%clk 0:02:53]} 7. O-O {[%clk 0:02:40]}  O-O {[%clk 0:02:49]} 8. b3 {[%clk 0:02:41]}  Nbd7 {[%clk 0:02:45]} 9. a4 {[%clk 0:02:41]}  a5 {[%clk 0:02:34]} 10. Ba3 {[%clk 0:02:40]}  Bxa3 {[%clk 0:02:30]} 11. Rxa3 {[%clk 0:02:41]}  b6 {[%clk 0:02:31]} 12. Ra1 {[%clk 0:02:34]}  Bb7 {[%clk 0:02:29]} 13. Qc2 {[%clk 0:02:27]}  Rc8 {[%clk 0:02:22]} 14. Qb2 {[%clk 0:02:27]}  Ne4 {[%clk 0:02:16]} 15. Ne5 {[%clk 0:02:10]}  Nxe5 {[%clk 0:02:10]} 16. dxe5 {[%clk 0:02:10]}  c5 {[%clk 0:02:09]} 17. cxd5 {[%clk 0:02:08]}  Nxd2 {[%clk 0:01:57]} 18. Qxd2 {[%clk 0:01:57]}  Qxd5 {[%clk 0:01:57]} 19. f4 {[%clk 0:01:45]}  Rcd8 {[%clk 0:01:46]} 20. Rad1 {[%clk 0:00:56]}  Ba6 {[%clk 0:01:24]} 21. Bxa6 {[%clk 0:00:56]}  Qxd2 {[%clk 0:01:24]} 22. Rxd2 {[%clk 0:00:55]}  Rxd2 {[%clk 0:01:24]} 23. Bc4 {[%clk 0:00:55]}  Kf7 {[%clk 0:01:19]} 24. Rf2 {[%clk 0:00:55]}  Rfd8 {[%clk 0:01:17]} 25. Kf1 {[%clk 0:00:50]}  g5 {[%clk 0:01:06]} 26. fxg5 {[%clk 0:00:43]}  Kg6 {[%clk 0:01:04]} 27. Ke1 {[%clk 0:00:39]}  Rxf2 {[%clk 0:00:59]} 28. Kxf2 {[%clk 0:00:40]}  Kxg5 {[%clk 0:00:59]} 29. Kg3 {[%clk 0:00:29]}  Kg6 {[%clk 0:00:48]} 30. Kf4 {[%clk 0:00:22]}  Kf7 {[%clk 0:00:45]} 31. Bb5 {[%clk 0:00:17]}  Rd2 {[%clk 0:00:43]} 32. Kf3 {[%clk 0:00:15]}  Rd5 {[%clk 0:00:37]} 33. Kf4 {[%clk 0:00:15]}  Rd2 {[%clk 0:00:37]} 34. Kf3 {[%clk 0:00:14]}  h6 {[%clk 0:00:38]} 35. Bc4 {[%clk 0:00:14]}  Ke7 {[%clk 0:00:37]} 36. Bb5 {[%clk 0:00:13]}  h5 {[%clk 0:00:27]} 37. h4 {[%clk 0:00:09]}  Rd8 {[%clk 0:00:25]} 38. g3 {[%clk 0:00:06]}  Rg8 {[%clk 0:00:18]} 39. Bc4 {[%clk 0:00:05]}  Rg4 {[%clk 0:00:18]} 40. Bd3 {[%clk 0:00:03]}  Kf7 {[%clk 0:00:11]} 41. Kf2 {[%clk 0:00:03]}  Rg8 {[%clk 0:00:11]} 42. Kf3 {[%clk 0:00:04]}  Rd8 {[%clk 0:00:11]} 43. Bc4 {[%clk 0:00:04]}  Rd2 {[%clk 0:00:12]} 44. Bb5 {[%clk 0:00:04]}  Rc2 {[%clk 0:00:09]} 45. Bd3 {[%clk 0:00:02]}  Rc3 {[%clk 0:00:08]} 46. Bc4 {[%clk 0:00:02]}  Ke7 {[%clk 0:00:07]} 47. Kf4 {[%clk 0:00:03]}  Rc1 {[%clk 0:00:07]} 48. Kf3 {[%clk 0:00:03]}  Rd1 {[%clk 0:00:05]} 49. Ke2 {[%clk 0:00:02]}  Rd5 {[%clk 0:00:05]} 50. Kf3 {[%clk 0:00:02]}  Rxe5 {[%clk 0:00:05]} 51. Kf4 {[%clk 0:00:02]}  Re4+ {[%clk 0:00:04]} 52. Kf3 {[%clk 0:00:03]}  Kf6 {[%clk 0:00:05]} 53. Kf2 {[%clk 0:00:02]}  e5 {[%clk 0:00:04]} 54. Kf3 {[%clk 0:00:02]}  Rg4 {[%clk 0:00:04]} 55. Kf2 {[%clk 0:00:03]}  Rg7 {[%clk 0:00:04]} 56. Kf3 {[%clk 0:00:03]}  e4+ {[%clk 0:00:04]} 57. Kf2 {[%clk 0:00:03]}  Ke5 {[%clk 0:00:05]} 0-1


[Site "https://www.chess.com"]

[Event "Titled Tuesday Blitz December 20 Early 2022"]
[White "VitorBronson"]
[Black "EdgePlosion"]
[WhiteElo "2459"]
[BlackElo "2420"]
[Result "0-1"]
[Round "10"]
[TimeControl "180+2"]
[Date "2022.12.20"]
[WhiteClock "0:00:16"]
[BlackClock "0:00:48"]

1. e4 {[%clk 0:03:00]}  e6 {[%clk 0:02:59]} 2. d4 {[%clk 0:03:00]}  d5 {[%clk 0:02:59]} 3. e5 {[%clk 0:02:59]}  c5 {[%clk 0:02:59]} 4. c3 {[%clk 0:02:59]}  Nc6 {[%clk 0:02:59]} 5. Nf3 {[%clk 0:03:00]}  Qb6 {[%clk 0:02:59]} 6. Bd3 {[%clk 0:03:00]}  cxd4 {[%clk 0:02:56]} 7. O-O {[%clk 0:03:00]}  Bd7 {[%clk 0:02:57]} 8. Re1 {[%clk 0:02:57]}  a6 {[%clk 0:02:47]} 9. a3 {[%clk 0:02:56]}  Rc8 {[%clk 0:02:45]} 10. b4 {[%clk 0:02:55]}  dxc3 {[%clk 0:02:44]} 11. Nxc3 {[%clk 0:02:55]}  Nd4 {[%clk 0:02:31]} 12. Bb2 {[%clk 0:02:12]}  Nxf3+ {[%clk 0:02:28]} 13. Qxf3 {[%clk 0:02:11]}  Ne7 {[%clk 0:02:28]} 14. h4 {[%clk 0:01:57]}  Qd8 {[%clk 0:02:12]} 15. a4 {[%clk 0:01:48]}  Nc6 {[%clk 0:02:08]} 16. b5 {[%clk 0:01:49]}  Nb4 {[%clk 0:02:09]} 17. Bb1 {[%clk 0:01:49]}  Qxh4 {[%clk 0:02:04]} 18. g3 {[%clk 0:01:38]}  Qd8 {[%clk 0:01:54]} 19. Ba3 {[%clk 0:01:37]}  a5 {[%clk 0:01:54]} 20. Ne2 {[%clk 0:01:28]}  Be7 {[%clk 0:01:37]} 21. Nf4 {[%clk 0:01:27]}  g6 {[%clk 0:01:35]} 22. Kg2 {[%clk 0:01:26]}  Bg5 {[%clk 0:01:31]} 23. Rh1 {[%clk 0:01:25]}  Bxf4 {[%clk 0:01:28]} 24. Qxf4 {[%clk 0:01:25]}  Rc4 {[%clk 0:01:29]} 25. Qf3 {[%clk 0:01:13]}  Qg5 {[%clk 0:01:28]} 26. Bd3 {[%clk 0:01:08]}  Rc3 {[%clk 0:01:21]} 27. Bxb4 {[%clk 0:01:06]}  axb4 {[%clk 0:01:22]} 28. Rhd1 {[%clk 0:01:05]}  O-O {[%clk 0:01:19]} 29. a5 {[%clk 0:00:51]}  Bxb5 {[%clk 0:01:17]} 30. Rab1 {[%clk 0:00:42]}  Bxd3 {[%clk 0:01:08]} 31. Rxd3 {[%clk 0:00:42]}  Qxe5 {[%clk 0:01:09]} 32. Rxb4 {[%clk 0:00:40]}  Rc1 {[%clk 0:01:08]} 33. Rxb7 {[%clk 0:00:39]}  Qe1 {[%clk 0:01:06]} 34. g4 {[%clk 0:00:31]}  Qh1+ {[%clk 0:01:01]} 35. Kg3 {[%clk 0:00:31]}  Rg1+ {[%clk 0:01:01]} 36. Kf4 {[%clk 0:00:31]}  Qh2+ {[%clk 0:00:55]} 37. Kg5 {[%clk 0:00:25]}  Qe5+ {[%clk 0:00:51]} 38. Kh6 {[%clk 0:00:22]}  Qg7+ {[%clk 0:00:46]} 39. Kg5 {[%clk 0:00:20]}  f6+ {[%clk 0:00:47]} 40. Kh4 {[%clk 0:00:19]}  Qxb7 {[%clk 0:00:48]} 41. Rb3 {[%clk 0:00:17]}  Qc7 {[%clk 0:00:47]} 42. a6 {[%clk 0:00:15]}  Qh2+ {[%clk 0:00:47]} 43. Qh3 {[%clk 0:00:16]}  Qxh3+ {[%clk 0:00:47]} 44. Kxh3 {[%clk 0:00:16]}  Ra1 {[%clk 0:00:48]} 45. Ra3 {[%clk 0:00:16]}  Rxa3+ {[%clk 0:00:48]} 0-1


[Site "https://www.chess.com"]

[Event "Titled Tuesday Blitz December 20 Early 2022"]
[White "Yildiz, Ayse Emek"]
[Black "OparinGrigoriy"]
[WhiteFideId "6303528"]
[WhiteElo "1702"]
[BlackElo "3013"]
[Result "1-0"]
[Round "10"]
[TimeControl "180+2"]
[Date "2022.12.20"]
[WhiteClock "0:00:06"]
[BlackClock "0:00:04"]

1. e4 {[%clk 0:03:00]}  c5 {[%clk 0:03:00]} 2. Nf3 {[%clk 0:03:00]}  d6 {[%clk 0:03:01]} 3. Bb5+ {[%clk 0:03:00]}  Bd7 {[%clk 0:03:00]} 4. Bxd7+ {[%clk 0:02:59]}  Nxd7 {[%clk 0:03:01]} 5. O-O {[%clk 0:02:58]}  Ngf6 {[%clk 0:03:02]} 6. Qe2 {[%clk 0:02:56]}  e6 {[%clk 0:03:02]} 7. c4 {[%clk 0:02:55]}  Be7 {[%clk 0:03:02]} 8. b3 {[%clk 0:02:55]}  O-O {[%clk 0:03:01]} 9. Nc3 {[%clk 0:02:54]}  Re8 {[%clk 0:02:54]} 10. d4 {[%clk 0:02:52]}  cxd4 {[%clk 0:02:50]} 11. Nxd4 {[%clk 0:02:53]}  a6 {[%clk 0:02:50]} 12. Bb2 {[%clk 0:02:53]}  Qa5 {[%clk 0:02:50]} 13. Rad1 {[%clk 0:02:48]}  Rac8 {[%clk 0:02:51]} 14. f4 {[%clk 0:02:19]}  Qc5 {[%clk 0:02:35]} 15. Kh1 {[%clk 0:02:17]}  Qh5 {[%clk 0:02:34]} 16. Rf3 {[%clk 0:02:08]}  Nc5 {[%clk 0:02:17]} 17. Re1 {[%clk 0:01:49]}  d5 {[%clk 0:02:12]} 18. cxd5 {[%clk 0:01:45]}  exd5 {[%clk 0:02:13]} 19. e5 {[%clk 0:01:45]}  Nfe4 {[%clk 0:02:14]} 20. Nxd5 {[%clk 0:01:43]}  f5 {[%clk 0:01:40]} 21. Nxe7+ {[%clk 0:01:26]}  Rxe7 {[%clk 0:01:41]} 22. Qc4+ {[%clk 0:01:26]}  Qf7 {[%clk 0:01:05]} 23. Nxf5 {[%clk 0:01:24]}  Rd7 {[%clk 0:00:44]} 24. Qxf7+ {[%clk 0:01:01]}  Rxf7 {[%clk 0:00:42]} 25. Nd6 {[%clk 0:00:52]}  Nxd6 {[%clk 0:00:42]} 26. exd6 {[%clk 0:00:53]}  Rd8 {[%clk 0:00:38]} 27. Be5 {[%clk 0:00:49]}  Ne6 {[%clk 0:00:33]} 28. Rc1 {[%clk 0:00:41]}  Rfd7 {[%clk 0:00:28]} 29. h4 {[%clk 0:00:39]}  h5 {[%clk 0:00:28]} 30. f5 {[%clk 0:00:38]}  Nf8 {[%clk 0:00:25]} 31. Rc7 {[%clk 0:00:38]}  Re8 {[%clk 0:00:26]} 32. Bg3 {[%clk 0:00:31]}  Re4 {[%clk 0:00:14]} 33. Kh2 {[%clk 0:00:28]}  Kf7 {[%clk 0:00:13]} 34. Rfc3 {[%clk 0:00:26]}  Rd4 {[%clk 0:00:12]} 35. Rxd7+ {[%clk 0:00:25]}  Nxd7 {[%clk 0:00:11]} 36. Rc7 {[%clk 0:00:26]}  Ke8 {[%clk 0:00:12]} 37. Rxb7 {[%clk 0:00:26]}  Rd5 {[%clk 0:00:12]} 38. Ra7 {[%clk 0:00:26]}  a5 {[%clk 0:00:12]} 39. Ra8+ {[%clk 0:00:19]}  Kf7 {[%clk 0:00:12]} 40. Ra7 {[%clk 0:00:19]}  Ke8 {[%clk 0:00:12]} 41. Be1 {[%clk 0:00:19]}  Nf6 {[%clk 0:00:09]} 42. Rxa5 {[%clk 0:00:18]}  Rxd6 {[%clk 0:00:09]} 43. Kg3 {[%clk 0:00:13]}  Rd4 {[%clk 0:00:07]} 44. Kf3 {[%clk 0:00:13]}  Rd1 {[%clk 0:00:05]} 45. Bf2 {[%clk 0:00:11]}  Rd3+ {[%clk 0:00:04]} 46. Ke2 {[%clk 0:00:11]}  Rc3 {[%clk 0:00:04]} 47. Ra7 {[%clk 0:00:11]}  Rc2+ {[%clk 0:00:03]} 48. Ke1 {[%clk 0:00:10]}  Ng4 {[%clk 0:00:02]} 49. Bd4 {[%clk 0:00:10]}  Nh6 {[%clk 0:00:03]} 50. Bxg7 {[%clk 0:00:08]}  Nxf5 {[%clk 0:00:02]} 51. Bf6 {[%clk 0:00:09]}  Rxg2 {[%clk 0:00:02]} 52. Bg5 {[%clk 0:00:09]}  Kf8 {[%clk 0:00:02]} 53. b4 {[%clk 0:00:08]}  Nd4 {[%clk 0:00:02]} 54. a4 {[%clk 0:00:09]}  Nc2+ {[%clk 0:00:03]} 55. Kf1 {[%clk 0:00:08]}  Rg4 {[%clk 0:00:03]} 56. b5 {[%clk 0:00:07]}  Rb4 {[%clk 0:00:04]} 57. Be7+ {[%clk 0:00:06]} 1-0


[Site "https://www.chess.com"]

[Event "Titled Tuesday Blitz December 20 Early 2022"]
[White "Zampronha, Wladimir Camilo"]
[Black "KerryStead"]
[WhiteFideId "2103087"]
[WhiteElo "2176"]
[BlackElo "2033"]
[Result "1-0"]
[Round "10"]
[TimeControl "180+2"]
[Date "2022.12.20"]
[WhiteClock "0:00:06"]
[BlackClock "0:00:05"]

1. e4 {[%clk 0:03:00]}  c6 {[%clk 0:02:59]} 2. d4 {[%clk 0:02:57]}  d5 {[%clk 0:02:59]} 3. e5 {[%clk 0:02:56]}  Bf5 {[%clk 0:02:58]} 4. Nf3 {[%clk 0:02:56]}  e6 {[%clk 0:02:57]} 5. Be2 {[%clk 0:02:56]}  c5 {[%clk 0:02:57]} 6. O-O {[%clk 0:02:55]}  Nc6 {[%clk 0:02:57]} 7. Be3 {[%clk 0:02:55]}  cxd4 {[%clk 0:02:56]} 8. Nxd4 {[%clk 0:02:56]}  Nxd4 {[%clk 0:02:55]} 9. Bxd4 {[%clk 0:02:55]}  Ne7 {[%clk 0:02:55]} 10. c4 {[%clk 0:02:49]}  Nc6 {[%clk 0:02:53]} 11. cxd5 {[%clk 0:02:45]}  Qxd5 {[%clk 0:02:49]} 12. Bf3 {[%clk 0:02:44]}  Qd7 {[%clk 0:02:35]} 13. Bc3 {[%clk 0:02:35]}  Qxd1 {[%clk 0:02:21]} 14. Rxd1 {[%clk 0:02:36]}  Rc8 {[%clk 0:02:21]} 15. Nd2 {[%clk 0:02:31]}  Bc5 {[%clk 0:02:18]} 16. Nc4 {[%clk 0:02:25]}  O-O {[%clk 0:02:13]} 17. Nd6 {[%clk 0:02:21]}  Bxd6 {[%clk 0:02:11]} 18. Rxd6 {[%clk 0:02:20]}  Rc7 {[%clk 0:01:55]} 19. Rad1 {[%clk 0:02:13]}  h6 {[%clk 0:01:52]} 20. Bxc6 {[%clk 0:02:11]}  Rxc6 {[%clk 0:01:49]} 21. Rxc6 {[%clk 0:02:10]}  bxc6 {[%clk 0:01:50]} 22. Rd7 {[%clk 0:02:10]}  Ra8 {[%clk 0:01:42]} 23. f3 {[%clk 0:02:08]}  Bb1 {[%clk 0:01:38]} 24. a3 {[%clk 0:02:07]}  Ba2 {[%clk 0:01:38]} 25. Kf2 {[%clk 0:02:02]}  Bd5 {[%clk 0:01:37]} 26. Ke3 {[%clk 0:02:01]}  a5 {[%clk 0:01:33]} 27. Kd4 {[%clk 0:02:01]}  Kf8 {[%clk 0:01:32]} 28. Kc5 {[%clk 0:01:57]}  Ke8 {[%clk 0:01:32]} 29. Kd6 {[%clk 0:01:51]}  a4 {[%clk 0:01:29]} 30. Re7+ {[%clk 0:01:47]}  Kf8 {[%clk 0:01:26]} 31. Bb4 {[%clk 0:01:47]}  Re8 {[%clk 0:01:17]} 32. Ra7 {[%clk 0:01:36]}  c5 {[%clk 0:00:38]} 33. Bxc5 {[%clk 0:01:31]}  Ra8 {[%clk 0:00:38]} 34. Rd7 {[%clk 0:00:44]}  Ke8 {[%clk 0:00:23]} 35. Re7+ {[%clk 0:00:38]}  Kf8 {[%clk 0:00:22]} 36. Rc7 {[%clk 0:00:20]}  Ke8 {[%clk 0:00:20]} 37. Bb4 {[%clk 0:00:17]}  Rd8+ {[%clk 0:00:14]} 38. Kc5 {[%clk 0:00:16]}  Bb3 {[%clk 0:00:13]} 39. Kb5 {[%clk 0:00:12]}  Rd5+ {[%clk 0:00:12]} 40. Kb6 {[%clk 0:00:12]}  Rxe5 {[%clk 0:00:09]} 41. Re7+ {[%clk 0:00:05]}  Kf8 {[%clk 0:00:05]} 42. Rxe6+ {[%clk 0:00:06]} 1-0


[Site "https://www.chess.com"]

[Event "Titled Tuesday Blitz December 20 Early 2022"]
[White "aidenzhouu"]
[Black "RianKapriaga"]
[WhiteElo "2386"]
[BlackElo "2327"]
[Result "0-1"]
[Round "10"]
[TimeControl "180+2"]
[Date "2022.12.20"]
[WhiteClock "0:00:11"]
[BlackClock "0:00:20"]

1. d4 {[%clk 0:02:57]}  Nf6 {[%clk 0:02:58]} 2. c4 {[%clk 0:02:57]}  e6 {[%clk 0:02:57]} 3. Nf3 {[%clk 0:02:57]}  d5 {[%clk 0:02:56]} 4. g3 {[%clk 0:02:57]}  Be7 {[%clk 0:02:55]} 5. Bg2 {[%clk 0:02:57]}  O-O {[%clk 0:02:55]} 6. O-O {[%clk 0:02:58]}  c6 {[%clk 0:02:55]} 7. Qc2 {[%clk 0:02:58]}  Nbd7 {[%clk 0:02:54]} 8. Rd1 {[%clk 0:02:59]}  b6 {[%clk 0:02:54]} 9. Nbd2 {[%clk 0:02:59]}  Ba6 {[%clk 0:02:52]} 10. b3 {[%clk 0:02:50]}  Rc8 {[%clk 0:02:49]} 11. e4 {[%clk 0:02:51]}  dxe4 {[%clk 0:02:44]} 12. Nxe4 {[%clk 0:02:51]}  Bb7 {[%clk 0:02:26]} 13. Bb2 {[%clk 0:02:36]}  Qc7 {[%clk 0:02:23]} 14. Ne5 {[%clk 0:02:24]}  Rfd8 {[%clk 0:02:09]} 15. f4 {[%clk 0:02:06]}  c5 {[%clk 0:02:07]} 16. Ng5 {[%clk 0:01:35]}  Bxg2 {[%clk 0:01:51]} 17. Qxg2 {[%clk 0:01:35]}  Nxe5 {[%clk 0:01:45]} 18. dxe5 {[%clk 0:01:34]}  Nd7 {[%clk 0:01:45]} 19. Ne4 {[%clk 0:01:31]}  Nb8 {[%clk 0:01:40]} 20. Nc3 {[%clk 0:00:51]}  a6 {[%clk 0:01:35]} 21. Qe4 {[%clk 0:00:32]}  Nc6 {[%clk 0:01:33]} 22. Nd5 {[%clk 0:00:20]}  exd5 {[%clk 0:01:04]} 23. cxd5 {[%clk 0:00:21]}  Nd4 {[%clk 0:01:03]} 24. Rac1 {[%clk 0:00:19]}  Qb7 {[%clk 0:01:01]} 25. Bxd4 {[%clk 0:00:19]}  cxd4 {[%clk 0:00:52]} 26. Rxc8 {[%clk 0:00:20]}  Rxc8 {[%clk 0:00:51]} 27. f5 {[%clk 0:00:16]}  Bc5 {[%clk 0:00:49]} 28. f6 {[%clk 0:00:16]}  g6 {[%clk 0:00:41]} 29. Rd3 {[%clk 0:00:15]}  Rd8 {[%clk 0:00:40]} 30. e6 {[%clk 0:00:15]}  Qxd5 {[%clk 0:00:35]} 31. e7 {[%clk 0:00:15]}  Qxe4 {[%clk 0:00:26]} 32. exd8=Q+ {[%clk 0:00:15]}  Bf8 {[%clk 0:00:26]} 33. Qxd4 {[%clk 0:00:11]}  Qxd4+ {[%clk 0:00:23]} 34. Rxd4 {[%clk 0:00:11]}  Bc5 {[%clk 0:00:23]} 35. Kg2 {[%clk 0:00:11]}  Bxd4 {[%clk 0:00:23]} 36. Kf3 {[%clk 0:00:12]}  Bxf6 {[%clk 0:00:23]} 37. Ke4 {[%clk 0:00:13]}  a5 {[%clk 0:00:21]} 38. Kd5 {[%clk 0:00:12]}  Be7 {[%clk 0:00:21]} 39. Kc6 {[%clk 0:00:12]}  Bc5 {[%clk 0:00:21]} 40. a3 {[%clk 0:00:11]}  Bxa3 {[%clk 0:00:20]} 41. Kxb6 {[%clk 0:00:11]}  Bb4 {[%clk 0:00:20]} 0-1


[Site "https://www.chess.com"]

[Event "Titled Tuesday Blitz December 20 Early 2022"]
[White "maurovargas01"]
[Black "annacramling"]
[WhiteElo "1920"]
[BlackElo "2219"]
[Result "0-1"]
[Round "10"]
[TimeControl "180+2"]
[Date "2022.12.20"]
[WhiteClock "0:00:31"]
[BlackClock "0:02:33"]

1. e4 {[%clk 0:01:08]}  c5 {[%clk 0:02:57]} 2. Nc3 {[%clk 0:01:06]}  Nc6 {[%clk 0:02:57]} 3. f4 {[%clk 0:01:07]}  g6 {[%clk 0:02:57]} 4. Nf3 {[%clk 0:01:00]}  Bg7 {[%clk 0:02:57]} 5. Bc4 {[%clk 0:00:44]}  e6 {[%clk 0:02:56]} 6. d3 {[%clk 0:00:44]}  Nge7 {[%clk 0:02:56]} 7. O-O {[%clk 0:00:35]}  d5 {[%clk 0:02:52]} 8. exd5 {[%clk 0:00:32]}  exd5 {[%clk 0:02:52]} 9. Bb3 {[%clk 0:00:33]}  O-O {[%clk 0:02:52]} 10. Qe1 {[%clk 0:00:31]}  Nd4 {[%clk 0:02:33]} 0-1


[Site "https://www.chess.com"]

[Event "Titled Tuesday Blitz December 20 Early 2022"]
[White "sergeikim"]
[Black "Aradhya, Garg"]
[BlackFideId "25006746"]
[WhiteElo "2606"]
[BlackElo "2284"]
[Result "0-1"]
[Round "10"]
[TimeControl "180+2"]
[Date "2022.12.20"]
[WhiteClock "0:01:33"]
[BlackClock "0:01:51"]

1. d4 {[%clk 0:03:00]}  d5 {[%clk 0:02:59]} 2. c4 {[%clk 0:03:00]}  c6 {[%clk 0:02:59]} 3. Nf3 {[%clk 0:03:00]}  Nf6 {[%clk 0:02:59]} 4. Qc2 {[%clk 0:03:00]}  g6 {[%clk 0:02:58]} 5. e3 {[%clk 0:02:59]}  Bg7 {[%clk 0:02:56]} 6. Bd3 {[%clk 0:02:58]}  O-O {[%clk 0:02:56]} 7. O-O {[%clk 0:02:58]}  c5 {[%clk 0:02:44]} 8. Nbd2 {[%clk 0:02:32]}  cxd4 {[%clk 0:02:43]} 9. exd4 {[%clk 0:02:28]}  Nc6 {[%clk 0:02:42]} 10. a3 {[%clk 0:02:27]}  dxc4 {[%clk 0:02:42]} 11. Nxc4 {[%clk 0:02:27]}  Bg4 {[%clk 0:02:40]} 12. Nce5 {[%clk 0:02:21]}  Nxd4 {[%clk 0:02:39]} 13. Nxd4 {[%clk 0:02:20]}  Qxd4 {[%clk 0:02:40]} 14. Nxg4 {[%clk 0:02:13]}  Nxg4 {[%clk 0:02:41]} 15. h3 {[%clk 0:02:01]}  Rfd8 {[%clk 0:02:19]} 16. Be4 {[%clk 0:01:58]}  Rac8 {[%clk 0:02:13]} 17. Qe2 {[%clk 0:01:57]}  Nxf2 {[%clk 0:01:53]} 18. Rxf2 {[%clk 0:01:47]}  Qd1+ {[%clk 0:01:53]} 19. Qxd1 {[%clk 0:01:32]}  Rxd1+ {[%clk 0:01:52]} 20. Rf1 {[%clk 0:01:33]}  Bd4+ {[%clk 0:01:51]} 0-1


[Site "https://www.chess.com"]